fUSD/lending_fUSD_20240715
["ID","MTS","AMOUNT","RATE_DAILY","PERIOD"]
[332221307,1721050234182,-500.0,0.00013808,2]
[332221308,1721050234193,-685.53,0.00013808,2]
[332221309,1721050234203,-317.65,0.00013817,2]
[332221310,1721050234213,-152.210947,0.00013835,2]
[332221311,1721050234223,-202.7635,0.0001386,2]
[332221312,1721050234233,-2994.1045,0.0001386,2]
[332221313,1721050234244,-708.42,0.00013863,2]
[332221314,1721050234256,-500.0,0.00013863,2]
[332221315,1721050234267,-685.53,0.00013863,2]
[332221316,1721050234278,-20181.90211607,0.0001388,2]
[332221317,1721050234290,-500.0,0.00013887,2]
[332221318,1721050234302,-500.0,0.00013888,2]
[332221319,1721050234312,-200.0,0.00013888,2]
[332221320,1721050234322,-369.18293041,0.00013889,2]
[332221321,1721050234333,-447.7161,0.0001389,2]
[332221322,1721050234346,-581.8249,0.0001389,2]
[332221323,1721050234360,-723.817327,0.00013899,2]
[332221324,1721050234370,-534.33047989,0.00013899,2]
[332221325,1721050234384,-292.93579283,0.00013899,2]
[332221326,1721050234396,-519.32016709,0.00013899,2]
[332221327,1721050234407,-235.2687,0.000139,2]
[332221328,1721050234418,-701.5384,0.000139,2]
[332221329,1721050234429,-472.5939,0.000139,2]
[332221330,1721050234439,-9902.2031,0.000139,2]
[332221331,1721050234451,-1000.0,0.000139,2]
[332221332,1721050234464,-2059.6731,0.000139,2]
[332221333,1721050234475,-194.54721008,0.000139,2]
[332221334,1721050234486,-931.54561687,0.000139,2]
[332221335,1721050234496,-280.4275769,0.000139,2]
[332221336,1721050234506,-311.09957735,0.000139,2]
[332221337,1721050234517,-746.63981127,0.000139,2]
[332221338,1721050234527,-316.90942906,0.000139,2]
[332221339,1721050234537,-202.63259192,0.00013903,2]
[332221340,1721050234547,-292.33396335,0.00013905,2]
[332221341,1721050234558,-708.42,0.00013917,2]
[332221342,1721050234569,-500.0,0.00013917,2]
[332221343,1721050234580,-685.53,0.00013917,2]
[332221344,1721050234591,-444.5141,0.0001393,2]
[332221345,1721050234602,-173.47,0.00013957,2]
[332221346,1721050234615,-150.0,0.0001396,2]
[332221347,1721050234625,-708.42,0.00013972,2]
[332221348,1721050234636,-500.0,0.00013972,2]
[332221349,1721050234647,-685.53,0.00013972,2]
[332221350,1721050234658,-500.0,0.00013988,2]
[332221351,1721050234669,-178.48363946,0.00013988,2]
[332221352,1721050234680,-500.0,0.00013988,2]
[332221353,1721050234690,-500.0,0.00013988,2]
[332221354,1721050234701,-500.0,0.00013988,2]
[332221355,1721050234711,-500.0,0.00013988,2]
[332221356,1721050234721,-500.0,0.00013988,2]
[332221357,1721050234732,-500.0,0.00013988,2]
[332221358,1721050234743,-500.0,0.00013988,2]
[332221359,1721050234754,-500.0,0.00013988,2]
[332221360,1721050234764,-534.17724511,0.00013988,2]
[332221361,1721050234775,-500.0,0.00013988,2]
[332221362,1721050234785,-500.0,0.00013988,2]
[332221363,1721050234795,-500.0,0.00013988,2]
[332221364,1721050234807,-502.5805308,0.00013988,2]
[332221365,1721050234818,-500.0,0.00013988,2]
[332221366,1721050234829,-500.0,0.00013988,2]
[332221367,1721050234839,-500.0,0.00013988,2]
[332221368,1721050234850,-500.0,0.00013988,2]
[332221369,1721050234861,-546.38256669,0.00013988,2]
[332221370,1721050234871,-577.21751969,0.00013988,2]
[332221371,1721050234882,-500.0,0.00013988,2]
[332221372,1721050234892,-500.0,0.00013988,2]
[332221373,1721050234903,-568.71153379,0.00013988,2]
[332221374,1721050234913,-537.01514529,0.00013988,2]
[332221375,1721050234923,-500.0,0.00013988,2]
[332221376,1721050234934,-905.98,0.00013988,2]
[332221377,1721050234944,-470.0,0.00013988,2]
[332221378,1721050234954,-216.45576739,0.00013989,2]
[332221379,1721050234965,-503.77624358,0.00013989,2]
[332221380,1721050234976,-600.17725484,0.00013989,2]
[332221381,1721050234986,-559.3800594,0.00013989,2]
[332221382,1721050234996,-570.2204828,0.00013989,2]
[332221383,1721050235007,-425.50944822,0.00013989,2]
[332221384,1721050235018,-500.0,0.00013989,2]
[332221385,1721050235028,-545.73433921,0.00013989,2]
[332221386,1721050235039,-500.0,0.00013989,2]
[332221387,1721050235050,-552.98537485,0.00013989,2]
[332221388,1721050235062,-401.15777446,0.00013989,2]
[332221390,1721050235072,-527.4907629,0.00013989,2]
[332221391,1721050235082,-519.83157062,0.00013989,2]
[332221392,1721050235093,-536.9117236,0.00013989,2]
[332221393,1721050235103,-568.5705824,0.00013989,2]
[332221394,1721050235113,-526.9069203,0.00013989,2]
[332221395,1721050235124,-302.47688273,0.00013989,2]
[332221396,1721050235134,-518.87281867,0.00013989,2]
[332221397,1721050235145,-500.0,0.00013989,2]
[332221398,1721050235156,-570.28648934,0.00013989,2]
[332221399,1721050235166,-538.1082247,0.00013989,2]
[332221400,1721050235178,-515.4550211,0.00013989,2]
[332221401,1721050235188,-500.0,0.00013989,2]
[332221402,1721050235199,-519.38201659,0.00013989,2]
[332221403,1721050235209,-537.69293747,0.00013989,2]
[332221404,1721050235220,-500.0,0.00013989,2]
[332221405,1721050235230,-649.54157754,0.00013989,2]
[332221406,1721050235241,-500.0,0.00013989,2]
[332221408,1721050235251,-586.41,0.00013989,2]
[332221409,1721050235262,-500.0,0.00013989,2]
[332221410,1721050235272,-500.0,0.00013989,2]
[332221411,1721050235283,-511.37227771,0.00013989,2]
[332221412,1721050235293,-500.0,0.00013989,2]
[332221413,1721050235303,-500.0,0.00013989,2]
[332221414,1721050235314,-500.0,0.00013989,2]
[332221415,1721050235324,-506.79688148,0.00013989,2]
[332221416,1721050235335,-500.0,0.00013989,2]
[332221417,1721050235346,-500.0,0.00013989,2]
[332221418,1721050235356,-500.0,0.00013989,2]
[332221419,1721050235367,-500.0,0.00013989,2]
[332221420,1721050235377,-507.02654653,0.00013989,2]
[332221421,1721050235387,-568.24501804,0.00013989,2]
[332221422,1721050235401,-557.00278063,0.00013989,2]
[332221423,1721050235411,-500.0,0.00013989,2]
[332221424,1721050235421,-529.52409253,0.00013989,2]
[332221425,1721050235432,-500.0,0.00013989,2]
[332221426,1721050235443,-591.65915056,0.00013989,2]
[332221427,1721050235453,-500.0,0.00013989,2]
[332221428,1721050235462,-500.0,0.00013989,2]
[332221429,1721050235474,-500.0,0.00013989,2]
[332221430,1721050235484,-199.74243761,0.00013989,2]
[332221431,1721050235495,-500.0,0.00013989,2]
[332221432,1721050235504,-522.65232991,0.00013989,2]
[332221433,1721050235514,-500.0,0.00013989,2]
[332221434,1721050235524,-502.48279262,0.00013989,2]
[332221435,1721050235535,-506.0583213,0.00013989,2]
[332221436,1721050235545,-500.0,0.00013989,2]
[332221437,1721050235557,-500.0,0.00013989,2]
[332221438,1721050235567,-500.0,0.00013989,2]
[332221439,1721050235577,-502.53923788,0.00013989,2]
[332221440,1721050235587,-500.82349587,0.00013989,2]
[332221441,1721050235598,-500.0,0.00013989,2]
[332221442,1721050235608,-501.59227042,0.00013989,2]
[332221443,1721050235618,-500.0,0.00013989,2]
[332221444,1721050235628,-500.0,0.00013989,2]
[332221445,1721050235638,-500.0,0.00013989,2]
[332221446,1721050235648,-501.38827813,0.00013989,2]
[332221447,1721050235659,-501.73386511,0.00013989,2]
[332221448,1721050235669,-509.56794197,0.00013989,2]
[332221449,1721050235679,-500.0,0.00013989,2]
[332221450,1721050235689,-1022.85049767,0.00013989,2]
[332221451,1721050235700,-525.76246325,0.00013989,2]
[332221452,1721050235710,-500.0,0.00013989,2]
[332221453,1721050235720,-500.0,0.00013989,2]
[332221454,1721050235730,-514.25227126,0.00013989,2]
[332221455,1721050235740,-529.6503448,0.00013989,2]
[332221456,1721050235750,-500.0,0.00013989,2]
[332221457,1721050235760,-517.60080296,0.00013989,2]
[332221458,1721050235770,-500.0,0.00013989,2]
[332221459,1721050235781,-500.0,0.00013989,2]
[332221460,1721050235791,-509.59359155,0.00013989,2]
[332221461,1721050235804,-526.16604247,0.00013989,2]
[332221462,1721050235814,-507.50596149,0.00013989,2]
[332221463,1721050235825,-513.59628818,0.00013989,2]
[332221464,1721050235835,-509.60649448,0.00013989,2]
[332221465,1721050235846,-500.0,0.00013989,2]
[332221466,1721050235856,-500.0,0.00013989,2]
[332221467,1721050235866,-500.0,0.00013989,2]
[332221468,1721050235876,-376.57966671,0.00013989,2]
[332221469,1721050235886,-525.49625832,0.00013989,2]
[332221470,1721050235896,-500.0,0.00013989,2]
[332221471,1721050235906,-500.0,0.00013989,2]
[332221472,1721050236164,-286.51636739,0.00013989,2]
[332221473,1721050236186,-500.0,0.00013989,2]
[332221474,1721050236202,-500.0,0.00013989,2]
[332221475,1721050236211,-500.0,0.00013989,2]
[332221476,1721050236220,-500.0,0.00013989,2]
[332221477,1721050236230,-500.0,0.00013989,2]
[332221478,1721050236239,-500.0,0.00013989,2]
[332221479,1721050236248,-500.0,0.00013989,2]
[332221480,1721050236257,-500.0,0.00013989,2]
[332221481,1721050236267,-500.0,0.00013989,2]
[332221482,1721050236276,-500.0,0.00013989,2]
[332221483,1721050236285,-500.0,0.00013989,2]
[332221484,1721050236294,-500.0,0.00013989,2]
[332221485,1721050236318,-169.8426272,0.00013989,2]
[332221486,1721050236328,-500.0,0.00013989,2]
[332221487,1721050236338,-276.34359382,0.00013989,2]
[332221488,1721050236348,-500.0,0.00013989,2]
[332221489,1721050236357,-196.2760271,0.00013989,2]
[332221490,1721050236367,-155.0,0.00013989,2]
[332221491,1721050236377,-900.0,0.0001399,2]
[332221492,1721050236387,-1000.0,0.0001399,2]
[332221493,1721050236399,-500.0,0.0001399,2]
[332221494,1721050236408,-194778.09592454,0.0001399,2]
[332221495,1721050236417,-216.45576739,0.0001399,2]
[332221496,1721050236428,-726.74286079,0.00013995,2]
[332221497,1721050236444,-621.19425631,0.00013995,2]
[332221498,1721050236453,-3360.2622429,0.00013995,2]
[332221499,1721050236464,-8991.8426501,0.00013995,2]
[332221500,1721050236474,-524.7770479,0.00013995,2]
[332221501,1721050236483,-6188.062513,0.00013998,2]
[332221502,1721050236493,-453.23937353,0.00013998,2]
[332221503,1721050236502,-500.0,0.00013999,2]
[332221504,1721050236512,-500.0,0.00013999,2]
[332221505,1721050236521,-500.0,0.00013999,2]
[332221506,1721050236530,-500.0,0.00013999,2]
[332221507,1721050236539,-500.0,0.00013999,2]
[332221508,1721050236548,-500.0,0.00013999,2]
[332221509,1721050236559,-500.0,0.00013999,2]
[332221510,1721050236568,-155.3283253,0.00013999,2]
[332221511,1721050236578,-266.62514129,0.00013999,2]
[332221512,1721050236589,-233.37485871,0.00013999,2]
[332221513,1721050236598,-500.0,0.00013999,2]
[332221514,1721050236607,-358.15147764,0.00013999,2]
[332221515,1721050236616,-500.0,0.00013999,2]
[332221516,1721050236625,-196.16688059,0.00013999,2]
[332221517,1721050236636,-303.83311941,0.00013999,2]
[332221518,1721050236645,-180.72450533,0.00013999,2]
[332221520,1721050236870,-319.27549467,0.00013999,2]
[332221521,1721050236879,-500.0,0.00013999,2]
[332221522,1721050236888,-263.34736503,0.00013999,2]
[332221523,1721050236933,290.94871821,0.0001,2]
[332221528,1721050238091,-155.41610123,0.00011098,2]
[332221529,1721050238101,-668.53762145,0.00012121,2]
[332221530,1721050238111,-155.70532314,0.00012121,2]
[332221531,1721050238120,-832.02343418,0.00012273,2]
[332221532,1721050238130,-1010.29713101,0.00012273,2]
[332221533,1721050238151,-300.36989989,0.00012273,2]
[332221534,1721050238160,-156.06582334,0.00012273,2]
[332221535,1721050238169,-2545.56053592,0.00012634,2]
[332221536,1721050238179,-155.0,0.00013128,2]
[332221537,1721050238188,-449.0,0.0001356,2]
[332221538,1721050238197,-236.65263497,0.00013999,2]
[332221539,1721050238207,-500.0,0.00013999,2]
[332221540,1721050238216,-500.0,0.00013999,2]
[332221541,1721050238226,-173.35110588,0.00013999,2]
[332221542,1721050238238,-326.64889412,0.00013999,2]
[332221543,1721050238248,-500.0,0.00013999,2]
[332221544,1721050238257,-450.0,0.00013999,2]
[332221545,1721050238266,-500.0,0.00013999,2]
[332221546,1721050238276,-500.0,0.00013999,2]
[332221547,1721050238285,-500.0,0.00013999,2]
[332221548,1721050238295,-500.0,0.00013999,2]
[332221549,1721050238307,-500.0,0.00013999,2]
[332221550,1721050238316,-188.92918688,0.00013999,2]
[332221551,1721050238326,-154.83751245,0.00013999,2]
[332221552,1721050238335,-500.0,0.00013999,2]
[332221553,1721050238344,-500.0,0.00013999,2]
[332221554,1721050238354,-155.08014178,0.00013999,2]
[332221555,1721050238363,-500.0,0.00013999,2]
[332221556,1721050238372,-500.0,0.00013999,2]
[332221557,1721050238382,-365.07448322,0.00013999,2]
[332221558,1721050238394,-500.0,0.00013999,2]
[332221559,1721050238403,-500.0,0.00013999,2]
[332221560,1721050238412,-198.38356624,0.00013999,2]
[332221561,1721050238421,-500.0,0.00013999,2]
[332221562,1721050238431,-512.18067199,0.00013999,2]
[332221563,1721050238440,-643.75,0.00013999,2]
[332221564,1721050238449,-500.0,0.00013999,2]
[332221565,1721050238458,-500.0,0.00013999,2]
[332221566,1721050238470,-500.0,0.00013999,2]
[332221567,1721050238479,-508.59023621,0.00013999,2]
[332221568,1721050238488,-538.55268929,0.00013999,2]
[332221570,1721050238498,-580.59904349,0.00013999,2]
[332221572,1721050238507,-513.95179117,0.00013999,2]
[332221574,1721050238516,-481.38731711,0.00013999,2]
[332221576,1721050238524,-473.82112203,0.00013999,2]
[332221578,1721050238533,-512.05690309,0.00013999,2]
[332221580,1721050238543,-527.43345799,0.00013999,2]
[332221581,1721050238551,-524.07044603,0.00013999,2]
[332221583,1721050238561,-517.19871836,0.00013999,2]
[332221585,1721050238570,-512.03728117,0.00013999,2]
[332221587,1721050238579,-500.0,0.00013999,2]
[332221589,1721050238588,-574.5133754,0.00013999,2]
[332221591,1721050238597,-306.30892631,0.00013999,2]
[332221593,1721050238606,-507.73490579,0.00013999,2]
[332221595,1721050238615,-513.42404921,0.00013999,2]
[332221596,1721050238624,-605.84712302,0.00013999,2]
[332221598,1721050238634,-523.498933,0.00013999,2]
[332221600,1721050238643,-523.38969871,0.00013999,2]
[332221602,1721050238653,-500.0,0.00013999,2]
[332221604,1721050238661,-397.56295062,0.00013999,2]
[332221606,1721050238670,-524.0232155,0.00013999,2]
[332221608,1721050238679,-510.86839605,0.00013999,2]
[332221610,1721050238688,-406.49183502,0.00013999,2]
[332221612,1721050238697,-510.61500489,0.00013999,2]
[332221614,1721050238707,-506.70940885,0.00013999,2]
[332221616,1721050238716,-501.99426843,0.00013999,2]
[332221618,1721050238725,-529.10309652,0.00013999,2]
[332221620,1721050238735,-501.97676458,0.00013999,2]
[332221622,1721050238744,-500.0,0.00013999,2]
[332221624,1721050238754,-500.0,0.00013999,2]
[332221626,1721050238763,-500.0,0.00013999,2]
[332221627,1721050238772,-514.71817242,0.00013999,2]
[332221629,1721050238782,-535.51506238,0.00013999,2]
[332221631,1721050238791,-351.66020529,0.00013999,2]
[332221633,1721050238801,-206.61045133,0.00013999,2]
[332221635,1721050238810,-525.51698001,0.00013999,2]
[332221637,1721050238819,-513.72085412,0.00013999,2]
[332221639,1721050238829,-554.6952669,0.00013999,2]
[332221641,1721050238838,-521.63776644,0.00013999,2]
[332221643,1721050238848,-515.59899439,0.00013999,2]
[332221645,1721050238857,-500.0,0.00013999,2]
[332221647,1721050238866,-502.43237156,0.00013999,2]
[332221649,1721050238875,-500.0,0.00013999,2]
[332221651,1721050238885,-213.2010857,0.00013999,2]
[332221653,1721050238894,-501.15652519,0.00013999,2]
[332221655,1721050238904,-512.84603502,0.00013999,2]
[332221657,1721050238913,-276.64717122,0.00013999,2]
[332221659,1721050238923,-513.37786701,0.00013999,2]
[332221661,1721050238932,-409.05583041,0.00013999,2]
[332221663,1721050238941,-212.03338637,0.00013999,2]
[332221665,1721050238951,-502.03801099,0.00013999,2]
[332221667,1721050238961,-501.58739966,0.00013999,2]
[332221669,1721050238970,-502.39611786,0.00013999,2]
[332221671,1721050238979,-444.46973846,0.00013999,2]
[332221673,1721050238988,-498.05,0.00013999,2]
[332221675,1721050238997,-500.0,0.00013999,2]
[332221677,1721050239007,-500.0,0.00013999,2]
[332221679,1721050239017,-500.0,0.00013999,2]
[332221681,1721050239026,-505.27181161,0.00013999,2]
[332221683,1721050239035,-409.71507326,0.00013999,2]
[332221684,1721050239044,-168.81981604,0.00013999,2]
[332221686,1721050239054,-225.17073958,0.00013999,2]
[332221688,1721050239063,-217.44785107,0.00013999,2]
[332221690,1721050239073,-371.1851228,0.00013999,2]
[332221692,1721050239082,-425.26598198,0.00013999,2]
[332221694,1721050239091,-155.52012646,0.00013999,2]
[332221696,1721050239101,-164.03533166,0.00013999,2]
[332221699,1721050239110,-5607.32059616,0.00013999,2]
[332221701,1721050239120,-500.0,0.00013999,2]
[332221702,1721050239129,-255.22937913,0.00013999,2]
[332221704,1721050239138,-500.0,0.00013999,2]
[332221706,1721050239147,-351.28103762,0.00013999,3]
[332221708,1721050239158,-2138.19660198,0.00014,2]
[332221710,1721050239167,-103884.28993989,0.00014,2]
[332221712,1721050239177,-515.0,0.00014,2]
[332221714,1721050239186,-116500.45601001,0.00014,2]
[332221717,1721050239198,-204206.1762993,0.00014,2]
[332221739,1721050239409,1221.83381837,0.0001,2]
[332221814,1721050240056,-256.2819418,0.00013989,2]
[332221816,1721050240067,-87662.00032231,0.00014,2]
[332221817,1721050240076,-2000.0,0.00014,2]
[332221819,1721050240085,-2000.0,0.00014,2]
[332221821,1721050240095,-2000.0,0.00014,2]
[332221823,1721050240104,-112547.86780505,0.00014,2]
[332221837,1721050240223,-2808.75318999,0.00014,2]
[332221839,1721050240235,-1082.89750315,0.00014,2]
[332221842,1721050240246,-394.6158734,0.00014,2]
[332221847,1721050240283,-3008.08311096,0.00014,2]
[332221849,1721050240295,-1604.46511187,0.00014,2]
[332221871,1721050240501,-1581.57156428,0.00014,2]
[332221873,1721050240513,-1086.34670665,0.00014,2]
[332222095,1721050243152,-156.0,0.00011199,2]
[332222100,1721050243162,-1953.7800008,0.00014,2]
[332222103,1721050243173,-1263.16132008,0.00014,2]
[332222109,1721050243222,-76182.30340579,0.00014,2]
[332222111,1721050243234,-400613.81953136,0.00014,2]
[332222133,1721050243442,-260.4399999,0.00014,2]
[332222191,1721050246005,-597.92187238,0.00011197,2]
[332222197,1721050246068,-198.71300995,0.00011197,2]
[332222199,1721050246078,-155.0,0.00013472,2]
[332222201,1721050246088,-57.99693155,0.00014,2]
[332222203,1721050246099,-776.31930374,0.00014,2]
[332222210,1721050246190,-922.26269289,0.00014,2]
[332222213,1721050246249,-517181.23350989,0.00014,2]
[332222214,1721050246260,-6278.03561387,0.00014,2]
[332222219,1721050246312,-5591.80383644,0.00014,2]
[332222224,1721050246376,-870.66039763,0.00014,2]
[332222742,1721050407365,189.0,0.00025,60]
[332222743,1721050616183,170.07,9.941e-05,2]
[332222750,1721050657454,208.74687532,9.941e-05,2]
[332222751,1721050657671,7562.05811425,9.941e-05,2]
[332222752,1721050660128,1436.08657762,9.941e-05,2]
[332222753,1721050664078,155.0,9.941e-05,2]
[332222754,1721050666768,348.94293618,9.941e-05,2]
[332222755,1721050668179,960.89206454,9.941e-05,2]
[332222756,1721050668363,14004.98756507,9.941e-05,2]
[332222757,1721050668517,1369.0146144,9.941e-05,4]
[332222758,1721050671550,1096.53530661,9.941e-05,2]
[332222759,1721050675668,290.94871821,9.941e-05,2]
[332222761,1721050677814,235962.11179038,9.941e-05,2]
[332222763,1721050679421,1281.66330539,9.941e-05,2]
[332222765,1721050694513,178.0332214,9.941e-05,2]
[332222770,1721050757184,1097.38665952,9.941e-05,2]
[332222771,1721050764683,7562.05811425,9.941e-05,2]
[332222772,1721050774946,305.88199387,9.941e-05,2]
[332222773,1721050778214,440.23256244,9.941e-05,2]
[332222774,1721050778814,235962.11179038,9.941e-05,2]
[332222776,1721050849672,6049.55975529,9.941e-05,2]
[332222778,1721050894851,235962.11179038,9.941e-05,2]
[332222779,1721050949983,170.24,9.08e-05,2]
[332222780,1721050984856,229750.23962327,9.941e-05,2]
[332222783,1721051055498,954.42,9.101e-05,2]
[332222788,1721051124889,170.07,8.668e-05,2]
[332222800,1721051250652,200.0,9.199e-05,2]
[332222805,1721051288947,-385.0,0.00010257,2]
[332222806,1721051288971,-1643.3148,0.00010258,2]
[332222807,1721051288995,-300.0,0.00010505,2]
[332222808,1721051289017,-150.0,0.00010505,2]
[332222809,1721051289039,-6694.9460974,0.00010506,2]
[332222810,1721051289062,-826.7391026,0.00010506,2]
[332222811,1721051292998,-6730.95112594,0.00010506,2]
[332222812,1721051293021,-3269.04887406,0.00010506,2]
[332222813,1721051293488,-10000.0,0.00010506,2]
[332222814,1721051294261,-6380.35031136,0.00010506,2]
[332222815,1721051294284,-250.0,0.00010598,2]
[332222816,1721051294306,-672.4,0.00010611,2]
[332222817,1721051294328,-818.18,0.00010611,2]
[332222818,1721051294352,-1879.06968864,0.00010683,2]
[332222819,1721051295003,3235.18,0.00027,120]
[332222820,1721051297266,-645.93031136,0.00010683,2]
[332222821,1721051297288,-483.56,0.00010729,2]
[332222822,1721051297311,-250.0,0.00010838,2]
[332222823,1721051297333,-1000.0,0.00010918,2]
[332222824,1721051297355,-999.99,0.00010918,2]
[332222825,1721051297376,-3932.79,0.00010918,2]
[332222826,1721051300857,274.69089237,0.00010629,2]
[332222843,1721051313662,2413.03879627,9.199e-05,2]
[332222844,1721051313687,10000.0,9.199e-05,2]
[332222845,1721051313709,6393.72291531,9.199e-05,2]
[332222854,1721051346704,454.81841727,0.00010629,2]
[332222855,1721051347220,162.14215498,0.00010906,2]
[332222856,1721051352356,162.14215493,0.0001093,2]
[332222857,1721051357222,162.14215493,0.00010954,2]
[332222864,1721051362225,162.14215493,0.00010978,2]
[332222867,1721051378742,181.39244222,0.00010629,2]
[332222870,1721051384442,2321.49760543,0.00010978,2]
[332222871,1721051384464,10000.0,0.00010978,2]
[332222872,1721051384488,8013.66630978,0.00010978,2]
[332222877,1721051393724,181.39244222,0.00010629,2]
[332222879,1721051396498,1804.941248,0.00010947,2]
[332222882,1721051412194,-300.0,0.00010946,2]
[332222883,1721051412217,-9700.0,0.00010947,2]
[332222892,1721051432295,-289.59,0.00010799,2]
[332222893,1721051432305,-349.09830435,0.00010947,2]
[332222894,1721051432316,-553.85044682,0.00010947,2]
[332222895,1721051432328,-482.99531256,0.00010947,2]
[332222896,1721051432397,-11009.11468827,0.00010947,2]
[332222897,1721051432406,-290.83715981,0.00010978,2]
[332222898,1721051432415,-162.14215493,0.00011003,2]
[332222899,1721051432424,-1444.88001929,0.00011006,2]
[332222900,1721051432433,-64.08903106,0.00011006,2]
[332222901,1721051432444,-180.86486151,0.00011006,2]
[332222902,1721051432453,-433.64513849,0.00011019,2]
[332222903,1721051432521,-498.6429475,0.00011019,2]
[332222904,1721051432532,-1026.39824093,0.00011019,2]
[332222905,1721051432543,-3492.35088058,0.00011019,2]
[332222906,1721051432555,-188.30890455,0.00011019,2]
[332222907,1721051432565,-200.0,0.00011019,2]
[332222908,1721051432575,-299.99,0.00011019,2]
[332222909,1721051432584,-22.29687374,0.00011019,2]
[332222910,1721051432596,-477.69312626,0.00011019,2]
[332222911,1721051432606,-162.14215493,0.00011027,2]
[332222912,1721051432615,-293.38497172,0.00011031,2]
[332222913,1721051432624,-516.9654971,0.00011031,2]
[332222914,1721051432634,-211.539,0.00011031,2]
[332222915,1721051432643,-162.14215493,0.00011051,2]
[332222916,1721051432653,-162.14215493,0.00011075,2]
[332222917,1721051432662,-9252.14906276,0.00011097,2]
[332222918,1721051432672,-2378.18929727,0.00011098,2]
[332222919,1721051432681,-1121.41583717,0.00011098,2]
[332222920,1721051432690,-748.76005696,0.00011098,2]
[332222921,1721051432700,-1500.0,0.00011098,2]
[332222922,1721051432709,-629.70304537,0.00011098,2]
[332222923,1721051432718,-159.52501886,0.00011098,2]
[332222924,1721051432727,-155.10723618,0.00011098,2]
[332222925,1721051432737,-159.18338459,0.00011098,2]
[332222926,1721051432747,-626.23900531,0.00011098,2]
[332222927,1721051432756,-156.88510079,0.00011098,2]
[332222928,1721051432766,-250.66805288,0.00011098,2]
[332222929,1721051432780,-204.38551304,0.00011098,2]
[332222931,1721051432789,-587.30286305,0.00011098,2]
[332222933,1721051432797,-155.18426986,0.00011098,2]
[332222935,1721051432806,-155.0,0.00011098,2]
[332222936,1721051432815,-251.80405807,0.00011098,2]
[332222937,1721051432826,-3500.68871565,0.00011098,2]
[332222938,1721051432836,-524.57681731,0.00011098,2]
[332222939,1721051432846,-158.66133679,0.00011098,2]
[332222940,1721051432856,-425.26598198,0.00011098,2]
[332222941,1721051432866,-202.72323641,0.00011098,2]
[332222942,1721051432875,-155.27013329,0.00011098,2]
[332222943,1721051432885,-3112.40418631,0.00011098,2]
[332222944,1721051432894,-155.0,0.00011098,2]
[332222945,1721051432903,-3327.78853586,0.00011098,2]
[332222946,1721051432913,-2142.69046508,0.00011098,2]
[332222947,1721051432922,-1004.5323812,0.00011098,2]
[332222948,1721051432934,-2024.87743557,0.00011098,2]
[332222949,1721051432944,-1254.63523304,0.00011098,2]
[332222950,1721051432953,-162.14215493,0.00011099,2]
[332222951,1721051432963,-369.14925316,0.00011197,2]
[332222952,1721051432972,-3918.67348824,0.00011198,2]
[332222953,1721051432982,-35627.7231892,0.00011199,2]
[332222954,1721051432991,-15451.9318012,0.00011199,2]
[332222955,1721051433000,-7109.72979156,0.00011199,2]
[332222956,1721051433013,-1256.4,0.00011199,2]
[332222957,1721051433024,-1346.78709982,0.00011199,2]
[332222958,1721051433036,-897.95,0.00011199,2]
[332222959,1721051433065,-482.87677638,0.00011199,2]
[332222969,1721051438196,-1374.7667779,0.00011199,2]
[332222970,1721051438217,-771.07115909,0.00011199,2]
[332222971,1721051438307,-11505.70016046,0.00011199,2]
[332222972,1721051438317,-152953.07824979,0.00011199,2]
[332222973,1721051438326,-2835.14404974,0.00011199,2]
[332222974,1721051438335,-11005.33966224,0.00011199,2]
[332222975,1721051438344,-1905.64778217,0.00011199,2]
[332222976,1721051438354,-2058.16,0.00011288,2]
[332222977,1721051438363,-954.42,0.00011365,2]